[Event "34th MPL National U12G Chess-ch 2022"]
[Site "Mysore"]
[Date "2022.04.09"]
[Round "1.1"]
[White "Vritika Krushna Game"]
[Black "Shubhi Gupta"]
[Result "0-1"]
[ECO "D02"]
[WhiteElo "1034"]
[BlackElo "1434"]
[Annotator "NA RC"]
[PlyCount "68"]
[EventDate "2022.04.09"]
[EventCountry "IND"]
[SourceTitle "playchess.com"]
[Source "ChessBase"]
[SourceQuality "1"]
[TimeControl "5400+30"]

1. d4 {[%emt 1:31:00]} d5 2. Nf3 {[%emt 0:00:30]} Nf6 {[%emt 1:31:30]} 3. Bf4 {[%emt 0:00:30]} c5 {[%emt 0:00:30]} 4. e3 {[%emt 0:00:30]} Nc6 {[%emt 0:00:30]} 5. c3 {[%emt 0:00:30]} Qb6 6. b3 {[%emt 0:00:30]} Bf5 {[%emt 0:01:00]} 7. Na3 {[%emt 0:00:30]} a6 {[%emt 0:00:30]} 8. Bd3 {[%emt 0:00:30]} Bxd3 {[%emt 0:00:30]} 9. Qxd3 {[%emt 0:00:30]} cxd4 {[%emt 0:00:30]} 10. exd4 {[%emt 0:00:30]} e5 {[%emt 0:00:30]} 11. dxe5 {[%emt 0:00:30]} Ng4 {[%emt 0:00:30]} 12. Qd2 {[%emt 0:00:30]} Bxa3 {[%emt 0:00:30]} 13. h3 {[%emt 0:00:30]} d4 {[%emt 0:00:30]} 14. hxg4 {[%emt 0:00:30]} dxc3 {[%emt 0:00:30]} 15. Qe2 {[%emt 0:00:30]} Qb4 {[%emt 0:00:30]} 16. Qc4 {[%emt 0:00:30]} Bb2 {[%emt 0:00:30]} 17. Qxb4 Nxb4 18. Rd1 {[%emt 0:01:00]} c2 19. Rd3 {[%emt 0:00:30]} c1=Q+ {[%emt 0:01:30]} 20. Bxc1 {[%emt 0:00:30]} Bxc1 {[%emt 0:00:30]} 21. a4 {[%emt 0:00:30]} Ba3 {[%emt 0:00:30]} 22. Rd2 {[%emt 0:00:30]} Nc6 {[%emt 0:00:30]} 23. O-O {[%emt 0:00:30]} O-O {[%emt 0:00:30]} 24. Rfd1 {[%emt 0:00:30]} Rfd8 {[%emt 0:00:30]} 25. g3 {[%emt 0:00:30]} h6 {[%emt 0:00:30]} 26. Rd7 {[%emt 0:00:30]} Bc5 {[%emt 0:00:30]} 27. Rxd8+ {[%emt 0:00:30]} Rxd8 {[%emt 0:00:30]} 28. Rxd8+ {[%emt 0:00:30]} Nxd8 {[%emt 0:00:30]} 29. Nd2 {[%emt 0:00:30]} Nc6 {[%emt 0:00:30]} 30. Nc4 {[%emt 0:00:30]} b5 {[%emt 0:00:30]} 31. axb5 axb5 32. Nd2 Nd4 {[%emt 0:01:00]} 33. Ne4 {[%emt 0:01:30]} Bb6 {[%emt 0:00:30]} 34. Nd6 {[%emt 0:00:30]} b4 {[%emt 0:00:30]} 0-1

[Event "34th MPL National U12G Chess-ch 2022"]
[Site "Mysore"]
[Date "2022.04.09"]
[Round "1.2"]
[White "Arshiya Das"]
[Black "Daksha Rudra"]
[Result "0-1"]
[ECO "C63"]
[WhiteElo "1407"]
[BlackElo "1028"]
[Annotator "NA RC"]
[PlyCount "109"]
[EventDate "2022.04.09"]
[EventCountry "IND"]
[SourceTitle "playchess.com"]
[Source "ChessBase"]
[SourceQuality "1"]
[TimeControl "5400+30"]

1. e4 {[%emt 1:31:00]} e5 2. Nf3 {[%emt 0:00:30]} Nc6 {[%emt 1:31:30]} 3. Bb5 {[%emt 0:00:30]} f5 {[%emt 0:00:30]} 4. Bxc6 {[%emt 0:00:30]} dxc6 {[%emt 0:00:30]} 5. Nxe5 {[%emt 0:00:30]} Qd4 {[%emt 0:00:30]} 6. Nf3 {[%emt 0:00:30]} Qxe4+ {[%emt 0:00:30]} 7. Qe2 {[%emt 0:00:30]} Qxe2+ {[%emt 0:00:30]} 8. Kxe2 {[%emt 0:00:30]} Bd6 {[%emt 0:00:30]} 9. Re1 {[%emt 0:00:30]} h6 10. Kf1+ Kf7 11. d4 Be6 12. b3 {[%emt 0:01:30]} Nf6 13. c4 {[%emt 0:00:30]} b6 14. c5 bxc5 15. dxc5 {[%emt 0:01:00]} Bxc5 16. Ne5+ {[%emt 0:00:30]} Ke7 17. Ng6+ {[%emt 0:00:30]} Kf7 18. Nxh8+ {[%emt 0:00:30]} Rxh8 19. Be3 {[%emt 0:00:30]} Bd6 20. h3 {[%emt 0:00:00]} Be5 {[%emt 0:00:00]} 21. Nd2 {[%emt 0:00:00]} Bxa1 {[%emt 0:00:00]} 22. Rxa1 {[%emt 0:00:00]} Rd8 {[%emt 0:00:00]} 23. Nf3 {[%emt 0:00:00]} Bd5 {[%emt 0:00:00]} 24. Bxa7 {[%emt 0:00:00]} Ra8 {[%emt 0:00:00]} 25. Bd4 {[%emt 0:00:00]} c5 {[%emt 0:00:00]} 26. Bb2 {[%emt 0:00:00]} Nd7 {[%emt 0:00:00]} 27. Nd2 {[%emt 0:00:00]} Nb6 {[%emt 0:00:00]} 28. a4 {[%emt 0:00:00]} g5 {[%emt 0:00:00]} 29. Rc1 {[%emt 0:00:00]} Nd7 {[%emt 0:00:00]} 30. g3 {[%emt 0:00:00]} Rb8 {[%emt 0:00:00]} 31. Rc3 {[%emt 0:00:00]} Ra8 {[%emt 0:00:00]} 32. Kg1 {[%emt 0:00:00]} c6 {[%emt 0:00:00]} 33. Rc1 {[%emt 0:00:00]} Rb8 {[%emt 0:00:00]} 34. Ba3 {[%emt 0:00:00]} Bxb3 {[%emt 0:00:00]} 35. Rb1 {[%emt 0:00:00]} Bxa4 {[%emt 0:00:00]} 36. Rxb8 {[%emt 0:00:00]} Nxb8 {[%emt 0:00:00]} 37. Bxc5 {[%emt 0:00:00]} Nd7 {[%emt 0:00:00]} 38. Ba3 {[%emt 0:00:00]} Ke6 {[%emt 0:00:00]} 39. Kf1 {[%emt 0:00:00]} Bb5+ {[%emt 0:00:00]} 40. Ke1 {[%emt 0:00:00]} c5 {[%emt 0:00:00]} 41. Kd1 {[%emt 0:00:00]} Bd3 {[%emt 0:00:00]} 42. Nb3 {[%emt 0:00:00]} Kd5 {[%emt 0:00:00]} 43. Kd2 {[%emt 0:00:00]} c4 {[%emt 0:00:00]} 44. Nc1 {[%emt 0:00:00]} Be4 {[%emt 0:00:00]} 45. Ke3 {[%emt 0:00:00]} Ne5 {[%emt 0:00:00]} 46. Ne2 {[%emt 0:00:00]} Bd3 {[%emt 0:00:00]} 47. Nc3+ {[%emt 0:00:00]} Ke6 {[%emt 0:00:00]} 48. Bf8 {[%emt 0:00:00]} h5 {[%emt 0:00:00]} 49. Bh6 {[%emt 0:00:00]} Kf6 {[%emt 0:00:00]} 50. Bf8 {[%emt 0:00:00]} Bf1 {[%emt 0:00:00]} 51. Nd5+ {[%emt 0:00:00]} Kf7 {[%emt 0:00:00]} 52. Ba3 {[%emt 0:00:00]} Bxh3 {[%emt 0:00:00]} 53. Kd4 {[%emt 0:00:00]} Ke6 {[%emt 0:00:00]} 54. Nc7+ {[%emt 0:00:00]} Kd7 {[%emt 0:00:00]} 55. Nd5 {[%emt 0:00:00]} 0-1

[Event "34th MPL National U12G Chess-ch 2022"]
[Site "Mysore"]
[Date "2022.04.09"]
[Round "1.3"]
[White "Katari Sajyotsna"]
[Black "Shreya G Hipparagi"]
[Result "0-1"]
[ECO "C50"]
[WhiteElo "1017"]
[BlackElo "1552"]
[Annotator "NA RC"]
[PlyCount "81"]
[EventDate "2022.04.09"]
[EventCountry "IND"]
[SourceTitle "playchess.com"]
[Source "ChessBase"]
[SourceQuality "1"]
[TimeControl "5400+30"]

1. e4 {[%emt 1:31:00]} e5 {[%emt 1:31:00]} 2. Nf3 {[%emt 0:00:30]} Nc6 {[%emt 0:00:30]} 3. Bc4 {[%emt 0:00:30]} Bc5 {[%emt 0:00:30]} 4. d3 {[%emt 0:00:30]} Nf6 {[%emt 0:00:30]} 5. Nc3 {[%emt 0:00:30]} d6 {[%emt 0:00:30]} 6. a3 {[%emt 0:00:30]} a6 7. Ba2 {[%emt 0:00:30]} Bg4 {[%emt 0:01:00]} 8. h3 {[%emt 0:00:30]} Bxf3 {[%emt 0:00:30]} 9. Qxf3 {[%emt 0:00:30]} Nd4 {[%emt 0:00:30]} 10. Qd1 {[%emt 0:00:30]} h6 {[%emt 0:00:30]} 11. Ne2 {[%emt 0:00:30]} O-O {[%emt 0:00:30]} 12. Ng3 {[%emt 0:00:30]} d5 {[%emt 0:00:30]} 13. c3 {[%emt 0:00:30]} Ne6 14. exd5 {[%emt 0:00:30]} Nxd5 15. Nf5 {[%emt 0:00:30]} Nef4 {[%emt 0:01:30]} 16. Bxf4 {[%emt 0:00:30]} Nxf4 {[%emt 0:00:30]} 17. O-O {[%emt 0:00:30]} Qg5 {[%emt 0:00:30]} 18. Qg4 {[%emt 0:00:30]} Qxg4 {[%emt 0:00:30]} 19. hxg4 {[%emt 0:00:30]} Nxd3 {[%emt 0:00:30]} 20. b4 {[%emt 0:00:30]} Ba7 {[%emt 0:00:30]} 21. Rad1 {[%emt 0:00:30]} Nf4 {[%emt 0:00:30]} 22. Rd7 {[%emt 0:00:30]} Ne2+ {[%emt 0:00:30]} 23. Kh1 {[%emt 0:00:30]} Nxc3 {[%emt 0:00:30]} 24. Bb3 {[%emt 0:00:30]} Bb6 {[%emt 0:00:30]} 25. Nh4 {[%emt 0:00:30]} Rad8 {[%emt 0:00:30]} 26. Re7 {[%emt 0:00:30]} Nd5 {[%emt 0:00:30]} 27. Rxe5 {[%emt 0:00:30]} Nf6 {[%emt 0:00:30]} 28. Re7 Nd5 {[%emt 0:00:30]} 29. Re5 Nf6 {[%emt 0:00:30]} 30. Ng6 {[%emt 0:01:30]} Rfe8 {[%emt 0:00:30]} 31. Ne7+ {[%emt 0:00:30]} Kf8 32. Rfe1 {[%emt 0:00:30]} Bxf2 {[%emt 0:01:00]} 33. R1e2 {[%emt 0:00:30]} Bd4 {[%emt 0:00:30]} 34. Ba4 {[%emt 0:00:30]} c6 {[%emt 0:00:30]} 35. Bxc6 {[%emt 0:00:30]} bxc6 {[%emt 0:00:30]} 36. Nxc6 {[%emt 0:00:30]} Bxe5 {[%emt 0:00:30]} 37. Nxd8 {[%emt 0:00:30]} Rxd8 {[%emt 0:00:30]} 38. Rxe5 {[%emt 0:00:30]} Rd1+ {[%emt 0:00:30]} 39. Kh2 {[%emt 0:00:30]} Nxg4+ {[%emt 0:00:30]} 40. Kg3 {[%emt 0:00:30]} Nxe5 {[%emt 0:00:30]} 41. Kh2 {[%emt 0:00:30]} 0-1

[Event "34th MPL National U12G Chess-ch 2022"]
[Site "Mysore"]
[Date "2022.04.09"]
[Round "1.5"]
[White "Anisha H Devadiga"]
[Black "Kalyani Sirin"]
[Result "0-1"]
[ECO "C54"]
[WhiteElo "1009"]
[BlackElo "1243"]
[Annotator "NA RC"]
[PlyCount "109"]
[EventDate "2022.04.09"]
[EventCountry "IND"]
[SourceTitle "playchess.com"]
[Source "ChessBase"]
[SourceQuality "1"]
[TimeControl "5400+30"]

1. e4 {[%emt 1:31:00]} e5 {[%emt 1:31:00]} 2. Nf3 {[%emt 0:00:30]} Nc6 3. Bc4 {[%emt 0:00:30]} Bc5 {[%emt 0:01:00]} 4. c3 Nf6 {[%emt 0:00:30]} 5. d3 d6 6. O-O {[%emt 0:01:30]} O-O {[%emt 0:01:00]} 7. Re1 {[%emt 0:00:30]} h6 8. Be3 {[%emt 0:00:30]} Bxe3 {[%emt 0:01:00]} 9. Rxe3 {[%emt 0:00:30]} d5 {[%emt 0:00:30]} 10. Bxd5 Nxd5 11. exd5 Qxd5 12. Qe2 {[%emt 0:01:30]} Bg4 {[%emt 0:01:30]} 13. h3 {[%emt 0:00:30]} Bxf3 14. Qxf3 Rad8 {[%emt 0:01:00]} 15. Nd2 {[%emt 0:01:00]} Qxf3 16. Nxf3 f6 {[%emt 0:01:00]} 17. Rd1 {[%emt 0:01:00]} Rd7 {[%emt 0:00:30]} 18. Re2 {[%emt 0:00:30]} Rfd8 19. Red2 {[%emt 0:00:30]} Kf7 20. Kf1 {[%emt 0:00:30]} Ke6 21. Ke2 Rd5 {[%emt 0:02:00]} 22. Ke3 {[%emt 0:01:00]} Ne7 23. c4 {[%emt 0:00:30]} Nf5+ {[%emt 0:01:00]} 24. Ke4 {[%emt 0:00:30]} R5d7 {[%emt 0:00:30]} 25. g4 {[%emt 0:00:30]} Nd4 {[%emt 0:00:30]} 26. Nxd4+ Rxd4+ 27. Ke3 {[%emt 0:01:00]} f5 28. gxf5+ Kxf5 29. f3 g5 30. Rg1 h5 31. b3 c5 32. a3 a6 33. b4 cxb4 34. axb4 b5 35. Rc1 {[%emt 0:04:00]} Rh4 {[%emt 0:05:00]} 36. Rh2 Rc8 {[%emt 0:00:30]} 37. Ra1 bxc4 {[%emt 0:00:30]} 38. Rxa6 {[%emt 0:01:30]} c3 39. Rc2 Rxb4 40. Ra3 Rh4 41. Raxc3 Rxc3 42. Rxc3 Rxh3 43. Rc5 Rh4 44. Rc2 Rf4 45. Rh2 Kg6 46. Ke2 g4 47. fxg4 hxg4 48. Rg2 Kg5 49. Ke3 Kf5 50. Rg3 Kg5 51. Kd2 Kh4 52. Re3 g3 53. Rxe5 g2 54. Re4 Rxe4 55. dxe4 0-1

[Event "34th MPL National U12G Chess-ch 2022"]
[Site "Mysore"]
[Date "2022.04.09"]
[Round "1.6"]
[White "Prishita Gupta"]
[Black "Saeeja Gunesh Dessai"]
[Result "1-0"]
[ECO "D11"]
[WhiteElo "1412"]
[BlackElo "1006"]
[Annotator "NA RC"]
[PlyCount "73"]
[EventDate "2022.04.09"]
[EventCountry "IND"]
[SourceTitle "playchess.com"]
[Source "ChessBase"]
[SourceQuality "1"]
[TimeControl "5400+30"]

1. d4 {[%emt 1:31:00]} d5 2. g3 {[%emt 0:00:30]} Nf6 {[%emt 1:31:30]} 3. Bg2 {[%emt 0:00:30]} Bf5 {[%emt 0:00:30]} 4. c4 {[%emt 0:00:30]} e6 {[%emt 0:00:30]} 5. Nc3 {[%emt 0:00:30]} c6 6. Nf3 {[%emt 0:00:30]} dxc4 {[%emt 0:01:00]} 7. Ne5 {[%emt 0:00:30]} Nbd7 {[%emt 0:00:30]} 8. Nxc4 {[%emt 0:00:30]} Nb6 {[%emt 0:00:30]} 9. Ne5 {[%emt 0:00:30]} Bd6 {[%emt 0:00:30]} 10. e4 {[%emt 0:00:30]} Bxe5 {[%emt 0:00:30]} 11. dxe5 Qxd1+ {[%emt 0:00:30]} 12. Kxd1 {[%emt 0:01:00]} Ng4 {[%emt 0:00:30]} 13. exf5 {[%emt 0:00:30]} Nxf2+ {[%emt 0:00:30]} 14. Ke2 {[%emt 0:00:30]} Nxh1 {[%emt 0:00:30]} 15. fxe6 {[%emt 0:00:30]} Nxg3+ {[%emt 0:00:30]} 16. hxg3 {[%emt 0:00:30]} fxe6 {[%emt 0:00:30]} 17. Ne4 {[%emt 0:00:30]} O-O {[%emt 0:00:30]} 18. Bh3 {[%emt 0:00:30]} Rfd8 19. Nd6 {[%emt 0:00:30]} Rd7 {[%emt 0:01:00]} 20. Bg5 {[%emt 0:00:30]} Rc7 {[%emt 0:00:30]} 21. Bxe6+ {[%emt 0:00:30]} Kh8 {[%emt 0:00:30]} 22. Nf7+ {[%emt 0:00:30]} Kg8 23. Nd8+ {[%emt 0:00:30]} Kh8 {[%emt 0:01:00]} 24. Rf1 {[%emt 0:00:30]} h6 {[%emt 0:00:30]} 25. Rf8+ {[%emt 0:00:30]} Kh7 {[%emt 0:00:30]} 26. Bg8+ {[%emt 0:00:30]} Kg6 {[%emt 0:00:30]} 27. Bh4 Nd5 {[%emt 0:00:30]} 28. e6 {[%emt 0:01:00]} Ne7 {[%emt 0:00:30]} 29. g4 {[%emt 0:00:30]} Nxg8 {[%emt 0:00:30]} 30. Rxg8 Kh7 {[%emt 0:00:30]} 31. Re8 {[%emt 0:01:00]} g5 {[%emt 0:00:30]} 32. Bg3 {[%emt 0:00:30]} Rg7 {[%emt 0:00:30]} 33. Be5 {[%emt 0:00:30]} Rg8 {[%emt 0:00:30]} 34. Rxg8 {[%emt 0:00:30]} Kxg8 {[%emt 0:00:30]} 35. e7 {[%emt 0:00:30]} Kh7 {[%emt 0:00:30]} 36. e8=Q {[%emt 0:00:30]} Rxd8 {[%emt 0:00:30]} 37. Qf7# {[%emt 0:00:30]} 1-0

[Event "34th MPL National U12G Chess-ch 2022"]
[Site "Mysore"]
[Date "2022.04.09"]
[Round "2.1"]
[White "Shubhi Gupta"]
[Black "Sandeepa Priyadarshini Sahoo"]
[Result "1-0"]
[ECO "D43"]
[WhiteElo "1434"]
[BlackElo "1142"]
[Annotator "NA RC"]
[PlyCount "69"]
[EventDate "2022.04.09"]
[EventCountry "IND"]
[SourceTitle "playchess.com"]
[Source "ChessBase"]
[SourceQuality "1"]
[TimeControl "5400+30"]

1. d4 {[%emt 0:01:17]} e6 {[%emt 0:00:26]} 2. c4 {[%emt 0:00:36]} d5 {[%emt 0:00:06]} 3. Nc3 {[%emt 0:00:31]} Nf6 {[%emt 0:00:29]} 4. Bg5 {[%emt 0:00:35]} c6 {[%emt 0:00:10]} 5. Nf3 {[%emt 0:01:07]} h6 {[%emt 0:00:45]} 6. Bh4 {[%emt 0:00:32]} Bd6 {[%emt 0:01:09]} 7. e3 {[%emt 0:00:46]} Nbd7 {[%emt 0:02:07]} 8. Rc1 {[%emt 0:02:26]} b6 {[%emt 0:01:32]} 9. Bd3 {[%emt 0:01:14]} Qc7 {[%emt 0:02:02]} 10. O-O {[%emt 0:01:22]} Bb7 {[%emt 0:00:48]} 11. cxd5 {[%emt 0:01:53]} exd5 {[%emt 0:03:28]} 12. Nb5 {[%emt 0:01:00]} Qb8 {[%emt 0:00:11]} 13. Nxd6+ {[%emt 0:00:09]} Qxd6 {[%emt 0:00:11]} 14. Bb1 {[%emt 0:00:28]} g5 {[%emt 0:08:13]} 15. Bg3 {[%emt 0:02:15]} Qe6 {[%emt 0:02:52]} 16. Ne5 {[%emt 0:01:43]} Nxe5 {[%emt 0:04:05]} 17. Bxe5 {[%emt 0:01:45]} Rg8 {[%emt 0:05:03]} 18. Bxf6 {[%emt 0:02:05]} Qxf6 {[%emt 0:00:10]} 19. e4 {[%emt 0:01:21]} dxe4 {[%emt 0:01:59]} 20. Bxe4 {[%emt 0:03:59]} Kf8 {[%emt 0:02:32]} 21. Rc3 {[%emt 0:09:15]} Rd8 {[%emt 0:00:55]} 22. Rf3 {[%emt 0:00:51]} Qd6 {[%emt 0:08:04]} 23. Qb3 {[%emt 0:10:38]} Qe7 {[%emt 0:03:01]} 24. Qe3 {[%emt 0:06:54]} Qd6 {[%emt 0:02:57]} 25. Rd1 {[%emt 0:04:56]} Bc8 {[%emt 0:01:58]} 26. Bf5 {[%emt 0:01:58]} Bxf5 {[%emt 0:00:44]} 27. Rxf5 {[%emt 0:00:09]} Rg6 {[%emt 0:04:16]} 28. h3 {[%emt 0:01:33]} Qe6 {[%emt 0:05:00]} 29. Qa3+ {[%emt 0:02:45]} Qe7 {[%emt 0:01:48]} 30. Qf3 {[%emt 0:03:14]} Rgd6 {[%emt 0:02:49]} 31. Rc1 {[%emt 0:03:59]} Rxd4 {[%emt 0:08:24]} 32. Rxc6 {[%emt 0:01:20]} Rd1+ {[%emt 0:00:41]} 33. Kh2 {[%emt 0:00:08]} R1d6 {[%emt 0:00:31]} 34. Qc3 {[%emt 0:03:45]} Rxc6 {[%emt 0:00:36]} 35. Qh8# {[%emt 0:00:13]} 1-0

[Event "34th MPL National U12G Chess-ch 2022"]
[Site "Mysore"]
[Date "2022.04.09"]
[Round "2.2"]
[White "Shreya G Hipparagi"]
[Black "Anaishaa Pinkesh Nahar"]
[Result "1/2-1/2"]
[ECO "B73"]
[WhiteElo "1552"]
[BlackElo "1254"]
[Annotator "NA RC"]
[PlyCount "92"]
[EventDate "2022.04.09"]
[EventCountry "IND"]
[SourceTitle "playchess.com"]
[Source "ChessBase"]
[SourceQuality "1"]
[TimeControl "5400+30"]

1. e4 {[%emt 0:00:03]} c5 {[%emt 0:00:04]} 2. Nf3 {[%emt 0:00:06]} g6 {[%emt 0:00:07]} 3. d4 {[%emt 0:00:18]} cxd4 {[%emt 0:00:09]} 4. Nxd4 {[%emt 0:00:26]} Nf6 {[%emt 1:32:10]} 5. Nc3 {[%emt 0:00:14]} d6 {[%emt 0:00:00]} 6. Be2 {[%emt 0:05:46]} Bg7 {[%emt 0:00:00]} 7. Be3 {[%emt 0:02:01]} Bd7 {[%emt 0:00:00]} 8. O-O {[%emt 0:01:43]} O-O {[%emt 0:00:00]} 9. Kh1 {[%emt 0:02:56]} Nc6 {[%emt 0:00:00]} 10. f4 {[%emt 0:04:18]} Qc8 {[%emt 0:00:00]} 11. Bf3 {[%emt 0:04:33]} Re8 {[%emt 0:00:00]} 12. Nxc6 {[%emt 0:11:35]} Bxc6 {[%emt 0:04:00]} 13. Bd4 {[%emt 0:02:29]} e5 {[%emt 0:00:00]} 14. fxe5 {[%emt 0:00:20]} dxe5 {[%emt 0:00:00]} 15. Be3 {[%emt 0:00:24]} Rd8 {[%emt 0:00:00]} 16. Qe2 {[%emt 0:01:05]} h6 {[%emt 0:00:00]} 17. Rad1 {[%emt 0:06:20]} Kh7 {[%emt 0:00:00]} 18. Bc5 {[%emt 0:02:29]} Rxd1 {[%emt 0:00:00]} 19. Qxd1 {[%emt 0:00:30]} Qe8 {[%emt 0:00:00]} 20. Nd5 {[%emt 0:02:16]} Nxd5 {[%emt 0:00:00]} 21. exd5 {[%emt 0:00:10]} Bb5 {[%emt 0:00:00]} 22. Re1 {[%emt 0:02:34]} b6 {[%emt 0:00:00]} 23. Bd4 {[%emt 0:00:51]} Rd8 {[%emt 0:00:00]} 24. b3 {[%emt 0:00:52]} Qh8 {[%emt 0:00:00]} 25. Bb2 {[%emt 0:01:05]} f5 {[%emt 0:00:00]} 26. c4 {[%emt 0:00:22]} Bd7 {[%emt 0:00:00]} 27. Ba3 {[%emt 0:01:52]} e4 {[%emt 0:00:00]} 28. Be2 {[%emt 0:00:09]} Bc3 {[%emt 0:00:00]} 29. Rf1 {[%emt 0:00:25]} Qg7 {[%emt 0:00:00]} 30. b4 {[%emt 0:01:16]} Bb2 {[%emt 0:00:00]} 31. Qb3 {[%emt 0:01:05]} Bxa3 {[%emt 0:00:00]} 32. Qxa3 {[%emt 0:00:06]} Qd4 {[%emt 0:00:00]} 33. Qxa7 {[%emt 0:01:31]} Qd2 {[%emt 0:00:00]} 34. Qc7 {[%emt 0:02:30]} Qxe2 {[%emt 0:00:00]} 35. Rg1 {[%emt 0:00:22]} Rg8 {[%emt 0:00:00]} 36. Qxd7+ {[%emt 0:00:52]} Rg7 {[%emt 0:00:00]} 37. Qc6 {[%emt 0:01:20]} Qxa2 {[%emt 0:00:00]} 38. d6 {[%emt 0:00:55]} Qd2 {[%emt 0:00:00]} 39. Qxb6 {[%emt 0:02:08]} e3 {[%emt 0:00:00]} 40. b5 {[%emt 0:01:17]} f4 {[%emt 0:00:00]} 41. Qc5 {[%emt 0:02:25]} Qf2 {[%emt 0:06:55]} 42. Qd4 {[%emt 0:02:00]} f3 {[%emt 0:03:17]} 43. g3 {[%emt 0:00:44]} Qe2 {[%emt 0:00:59]} 44. Qg4 {[%emt 0:06:59]} h5 {[%emt 0:02:46]} 45. d7 {[%emt 0:02:39]} hxg4 {[%emt 0:00:57]} 46. d8=Q {[%emt 0:00:07]} f2 {[%emt 0:00:47]} 1/2-1/2

[Event "34th MPL National U12G Chess-ch 2022"]
[Site "Mysore"]
[Date "2022.04.09"]
[Round "2.3"]
[White "Rudra Rajeev"]
[Black "Singh Myra"]
[Result "0-1"]
[ECO "D35"]
[WhiteElo "1141"]
[BlackElo "1606"]
[Annotator "NA RC"]
[PlyCount "76"]
[EventDate "2022.04.09"]
[EventCountry "IND"]
[SourceTitle "playchess.com"]
[Source "ChessBase"]
[SourceQuality "1"]
[TimeControl "5400+30"]

1. d4 {[%emt 0:00:12]} d5 {[%emt 0:00:04]} 2. c4 {[%emt 0:00:42]} e6 {[%emt 0:00:05]} 3. Nc3 {[%emt 0:00:57]} Nf6 {[%emt 0:00:06]} 4. Bg5 {[%emt 0:00:41]} Be7 {[%emt 0:00:06]} 5. cxd5 {[%emt 0:00:55]} exd5 {[%emt 0:00:09]} 6. e3 {[%emt 0:00:39]} O-O {[%emt 0:00:06]} 7. Bd3 {[%emt 0:00:55]} Nbd7 {[%emt 0:00:21]} 8. f3 {[%emt 0:01:33]} h6 {[%emt 0:02:39]} 9. Bh4 {[%emt 0:01:19]} b6 {[%emt 0:00:53]} 10. Nge2 {[%emt 0:00:44]} Bb7 {[%emt 0:00:38]} 11. O-O {[%emt 0:01:15]} Re8 {[%emt 0:01:22]} 12. Rc1 {[%emt 0:05:46]} c5 {[%emt 0:01:39]} 13. Bb1 {[%emt 0:01:00]} Bd6 {[%emt 0:03:48]} 14. Qd2 {[%emt 0:03:00]} cxd4 {[%emt 0:07:08]} 15. Nxd4 {[%emt 0:02:12]} Ne5 {[%emt 0:12:42]} 16. b3 {[%emt 0:04:41]} Bc5 {[%emt 0:04:59]} 17. Na4 {[%emt 0:02:26]} Ba6 {[%emt 0:02:05]} 18. Rfd1 {[%emt 0:01:34]} Ba3 {[%emt 0:00:53]} 19. Rc2 {[%emt 0:04:58]} Bd3 {[%emt 0:00:52]} 20. Nc6 {[%emt 0:04:22]} Qd6 {[%emt 0:13:02]} 21. Nxe5 {[%emt 0:02:23]} Bxc2 {[%emt 0:00:55]} 22. Nc4 {[%emt 0:02:28]} dxc4 {[%emt 0:01:33]} 23. Qxc2 {[%emt 0:01:45]} Qe6 {[%emt 0:02:33]} 24. e4 {[%emt 0:02:19]} cxb3 {[%emt 0:00:20]} 25. axb3 {[%emt 0:01:10]} Rac8 {[%emt 0:01:06]} 26. Qd3 {[%emt 0:00:55]} Red8 {[%emt 0:01:13]} 27. Qxd8+ {[%emt 0:00:50]} Rxd8 {[%emt 0:00:11]} 28. Rxd8+ {[%emt 0:00:10]} Bf8 {[%emt 0:01:31]} 29. Bc2 {[%emt 0:01:02]} Qe7 {[%emt 0:01:36]} 30. Bxf6 {[%emt 0:00:22]} Qxf6 {[%emt 0:00:48]} 31. Rd5 {[%emt 0:01:06]} Qc6 {[%emt 0:00:48]} 32. Bd1 {[%emt 0:02:03]} b5 {[%emt 0:00:30]} 33. Nb2 {[%emt 0:01:11]} Qc1 {[%emt 0:00:31]} 34. Na4 {[%emt 0:00:41]} bxa4 {[%emt 0:00:20]} 35. bxa4 {[%emt 0:00:24]} Bc5+ {[%emt 0:00:22]} 36. Kh1 {[%emt 0:00:35]} Qe3 {[%emt 0:00:18]} 37. Rd8+ {[%emt 0:00:32]} Kh7 {[%emt 0:00:11]} 38. h4 {[%emt 0:00:14]} Qg1# {[%emt 0:00:07]} 0-1

[Event "34th MPL National U12G Chess-ch 2022"]
[Site "Mysore"]
[Date "2022.04.09"]
[Round "2.4"]
[White "Kalyani Sirin"]
[Black "Aadya Ranganath"]
[Result "1-0"]
[ECO "C50"]
[WhiteElo "1243"]
[BlackElo "1133"]
[Annotator "NA RC"]
[PlyCount "101"]
[EventDate "2022.04.09"]
[EventCountry "IND"]
[SourceTitle "playchess.com"]
[Source "ChessBase"]
[SourceQuality "1"]
[TimeControl "5400+30"]

1. e4 {[%emt 0:00:05]} e5 {[%emt 0:00:07]} 2. Nf3 {[%emt 0:00:07]} Nc6 {[%emt 0:00:06]} 3. Bc4 {[%emt 0:00:11]} Bc5 {[%emt 0:00:08]} 4. O-O {[%emt 0:00:43]} Nf6 {[%emt 0:00:06]} 5. d3 {[%emt 0:00:08]} O-O {[%emt 0:00:20]} 6. Bg5 {[%emt 0:00:13]} h6 {[%emt 0:00:37]} 7. Bh4 {[%emt 0:00:16]} Be7 {[%emt 0:00:09]} 8. Nbd2 {[%emt 0:01:25]} d5 {[%emt 0:01:36]} 9. exd5 {[%emt 0:00:18]} Nxd5 {[%emt 0:00:13]} 10. Bxe7 {[%emt 0:01:27]} Ndxe7 {[%emt 0:00:28]} 11. Re1 {[%emt 0:01:16]} Ng6 {[%emt 0:00:49]} 12. h3 {[%emt 0:04:08]} Be6 {[%emt 0:00:56]} 13. Bxe6 {[%emt 0:01:29]} fxe6 {[%emt 0:00:07]} 14. Nc4 {[%emt 0:02:41]} Qf6 {[%emt 0:02:45]} 15. Qd2 {[%emt 0:01:38]} Rad8 {[%emt 0:01:50]} 16. Re4 {[%emt 0:04:44]} b5 {[%emt 0:05:33]} 17. Ne3 {[%emt 0:02:06]} Nd4 {[%emt 0:02:29]} 18. Nxd4 {[%emt 0:01:29]} Rxd4 {[%emt 0:00:59]} 19. Ng4 {[%emt 0:02:14]} Qf5 {[%emt 0:02:24]} 20. Rae1 {[%emt 0:04:13]} Rxe4 {[%emt 0:03:27]} 21. Rxe4 {[%emt 0:00:57]} Rd8 {[%emt 0:03:21]} 22. Qe3 {[%emt 0:00:54]} Rd5 {[%emt 0:02:33]} 23. Qxa7 {[%emt 0:02:39]} c5 {[%emt 0:02:36]} 24. Ne3 {[%emt 0:01:20]} Qf7 {[%emt 0:03:31]} 25. Qxf7+ {[%emt 0:00:55]} Kxf7 {[%emt 0:00:15]} 26. Nxd5 {[%emt 0:00:07]} exd5 {[%emt 0:00:04]} 27. Re1 {[%emt 0:00:23]} Kf6 {[%emt 0:00:44]} 28. g3 {[%emt 0:01:27]} Ne7 {[%emt 0:02:01]} 29. Kg2 {[%emt 0:00:14]} Nf5 {[%emt 0:00:12]} 30. c3 {[%emt 0:00:21]} Nd6 {[%emt 0:00:27]} 31. b3 {[%emt 0:04:09]} Nb7 {[%emt 0:00:18]} 32. a4 {[%emt 0:01:08]} c4 {[%emt 0:02:22]} 33. dxc4 {[%emt 0:00:32]} dxc4 {[%emt 0:00:08]} 34. b4 {[%emt 0:02:10]} bxa4 {[%emt 0:00:08]} 35. Ra1 {[%emt 0:00:05]} Nd6 {[%emt 0:00:21]} 36. Rxa4 {[%emt 0:00:19]} Nb5 {[%emt 0:04:28]} 37. Ra6+ {[%emt 0:00:34]} Kf5 {[%emt 0:02:30]} 38. Rc6 {[%emt 0:00:16]} Nxc3 {[%emt 0:00:07]} 39. Rxc4 {[%emt 0:00:08]} Ne4 {[%emt 0:00:07]} 40. g4+ {[%emt 0:00:28]} Kf4 {[%emt 0:00:29]} 41. f3 {[%emt 0:00:10]} Kg5 {[%emt 0:00:21]} 42. fxe4 {[%emt 0:00:17]} Kf4 {[%emt 0:02:05]} 43. b5 {[%emt 0:00:37]} g6 {[%emt 0:00:16]} 44. b6 {[%emt 0:00:05]} h5 {[%emt 0:00:11]} 45. b7 {[%emt 0:00:31]} hxg4 {[%emt 0:00:34]} 46. hxg4 {[%emt 0:00:13]} Kxg4 {[%emt 0:00:42]} 47. b8=Q {[%emt 0:00:12]} g5 {[%emt 0:00:15]} 48. Qxe5 {[%emt 0:01:41]} Kh5 {[%emt 0:00:33]} 49. Rc6 {[%emt 0:00:55]} Kg4 {[%emt 0:00:12]} 50. Qf5+ {[%emt 0:00:29]} Kh5 {[%emt 0:00:24]} 51. Qh3# {[%emt 0:00:10]} 1-0